fUST/lending_fUST_20240820
["ID","MTS","AMOUNT","RATE_DAILY","PERIOD"]
[335299066,1724087461308,-500.0,0.00016986,2]
[335299067,1724087461318,-500.0,0.00016986,2]
[335299068,1724087461329,-500.0,0.00016986,2]
[335299069,1724087461340,-500.0,0.00016986,2]
[335299070,1724087461352,-500.0,0.00016986,2]
[335299071,1724087461362,-500.0,0.00016986,2]
[335299072,1724087461372,-500.0,0.00016986,2]
[335299073,1724087461383,-913.89,0.00016986,2]
[335299074,1724087461395,-500.0,0.00016986,2]
[335299075,1724087461407,-500.0,0.00016986,2]
[335299076,1724087461417,-500.0,0.00016986,2]
[335299077,1724087461427,-2026.75,0.00016986,2]
[335299078,1724087461438,-500.0,0.00016986,2]
[335299079,1724087461447,-500.0,0.00016986,2]
[335299080,1724087461458,-433.37737187,0.00016986,2]
[335299081,1724087461468,-500.0,0.00016986,2]
[335299082,1724087461478,-500.0,0.00016986,2]
[335299083,1724087461489,-500.0,0.00016986,2]
[335299084,1724087461499,-500.0,0.00016986,2]
[335299085,1724087461510,-500.0,0.00016986,2]
[335299086,1724087461520,-500.0,0.00016986,2]
[335299087,1724087461531,-500.0,0.00016986,2]
[335299088,1724087461543,-500.0,0.00016986,2]
[335299089,1724087461555,-1529.31,0.00016986,2]
[335299090,1724087461565,-2596.32,0.00016986,2]
[335299091,1724087461575,-500.0,0.00016986,2]
[335299092,1724087461584,-500.0,0.00016986,2]
[335299093,1724087461594,-248.02333173,0.00016986,2]
[335299094,1724087461603,-500.0,0.00016986,2]
[335299095,1724087461613,-500.0,0.00016986,2]
[335299096,1724087461622,-500.0,0.00016986,2]
[335299097,1724087461631,-1086.36,0.00016986,2]
[335299098,1724087461643,-500.0,0.00016986,2]
[335299099,1724087461662,-500.0,0.00016986,2]
[335299100,1724087461671,-500.0,0.00016986,2]
[335299101,1724087461682,-500.0,0.00016986,2]
[335299102,1724087461691,-500.0,0.00016986,2]
[335299103,1724087461702,-500.0,0.00016986,2]
[335299104,1724087461713,-500.0,0.00016986,2]
[335299105,1724087461722,-581.08,0.00016986,2]
[335299106,1724087461732,-500.0,0.00016986,2]
[335299107,1724087461744,-500.0,0.00016986,2]
[335299108,1724087461754,-600.75,0.00016986,2]
[335299109,1724087461764,-2316.7,0.00016986,2]
[335299110,1724087461774,-500.0,0.00016986,2]
[335299111,1724087461783,-500.0,0.00016986,2]
[335299112,1724087461792,-789.7,0.00016986,2]
[335299113,1724087461803,-509.30121321,0.00016986,2]
[335299114,1724087461815,-500.0,0.00016986,2]
[335299115,1724087461827,-500.0,0.00016986,2]
[335299116,1724087461840,-500.0,0.00016986,2]
[335299117,1724087461851,-500.0,0.00016986,2]
[335299118,1724087461863,-500.0,0.00016986,2]
[335299119,1724087461873,-500.0,0.00016986,2]
[335299120,1724087461883,-500.0,0.00016986,2]
[335299121,1724087461892,-555.31672374,0.00016986,2]
[335299122,1724087461903,-500.0,0.00016986,2]
[335299123,1724087461913,-500.0,0.00016986,2]
[335299124,1724087461923,-6471.24,0.00016986,2]
[335299125,1724087461936,-500.0,0.00016986,2]
[335299126,1724087461947,-685.99,0.00016986,2]
[335299127,1724087461957,-527.06,0.00016986,2]
[335299128,1724087461967,-500.0,0.00016986,2]
[335299129,1724087461976,-500.0,0.00016986,2]
[335299130,1724087461988,-507.47872782,0.00016986,2]
[335299131,1724087462000,-513.81,0.00016986,2]
[335299132,1724087462011,-500.0,0.00016986,2]
[335299133,1724087462024,-500.0,0.00016986,2]
[335299134,1724087462036,-500.0,0.00016986,2]
[335299135,1724087462047,-500.0,0.00016986,2]
[335299136,1724087462059,-500.0,0.00016986,2]
[335299137,1724087462069,-500.0,0.00016986,2]
[335299138,1724087462078,-500.0,0.00016986,2]
[335299139,1724087462093,-500.0,0.00016986,2]
[335299140,1724087462104,-500.0,0.00016986,2]
[335299141,1724087462115,-500.0,0.00016986,2]
[335299142,1724087462127,-500.0,0.00016986,2]
[335299143,1724087462138,-500.0,0.00016986,2]
[335299144,1724087462149,-500.0,0.00016986,2]
[335299145,1724087462159,-500.0,0.00016986,2]
[335299146,1724087462171,-1201.3,0.00016986,2]
[335299147,1724087462180,-500.0,0.00016986,2]
[335299148,1724087462190,-500.0,0.00016986,2]
[335299149,1724087462199,-500.0,0.00016986,2]
[335299150,1724087462211,-500.0,0.00016986,2]
[335299151,1724087462221,-500.0,0.00016986,2]
[335299152,1724087462231,-500.0,0.00016986,2]
[335299153,1724087462240,-500.0,0.00016986,2]
[335299154,1724087462249,-500.0,0.00016986,2]
[335299155,1724087462258,-500.0,0.00016986,2]
[335299156,1724087462269,-500.0,0.00016986,2]
[335299157,1724087462281,-500.0,0.00016986,2]
[335299158,1724087462291,-500.0,0.00016986,2]
[335299159,1724087462299,-500.0,0.00016986,2]
[335299160,1724087462309,-500.0,0.00016986,2]
[335299161,1724087462322,-861.02,0.00016986,2]
[335299162,1724087462333,-500.0,0.00016986,2]
[335299163,1724087462345,-500.0,0.00016986,2]
[335299164,1724087462358,-500.0,0.00016986,2]
[335299165,1724087462367,-500.0,0.00016986,2]
[335299166,1724087462377,-500.0,0.00016986,2]
[335299167,1724087462386,-500.0,0.00016986,2]
[335299168,1724087462395,-500.0,0.00016986,2]
[335299169,1724087462406,-500.0,0.00016986,2]
[335299170,1724087462415,-500.0,0.00016986,2]
[335299171,1724087462426,-500.0,0.00016986,2]
[335299172,1724087462436,-765.7,0.00016986,2]
[335299173,1724087462446,-500.0,0.00016986,2]
[335299174,1724087462457,-500.0,0.00016986,2]
[335299175,1724087462468,-500.0,0.00016986,2]
[335299176,1724087462479,-500.0,0.00016986,2]
[335299177,1724087462489,-692.68,0.00016986,2]
[335299178,1724087462500,-500.0,0.00016986,2]
[335299179,1724087462512,-500.0,0.00016986,2]
[335299180,1724087462522,-714.8,0.00016986,2]
[335299181,1724087462532,-500.0,0.00016986,2]
[335299182,1724087462542,-332.71733308,0.00016986,2]
[335299183,1724087462552,-1131.89,0.00016986,2]
[335299184,1724087462563,-500.0,0.00016986,2]
[335299185,1724087462573,-500.0,0.00016986,2]
[335299186,1724087462585,-500.0,0.00016986,2]
[335299187,1724087462596,-735.01,0.00016986,2]
[335299188,1724087462607,-500.0,0.00016986,2]
[335299189,1724087462619,-530.10838452,0.00016986,2]
[335299190,1724087462629,-500.0,0.00016986,2]
[335299191,1724087462641,-500.0,0.00016986,2]
[335299192,1724087462653,-500.0,0.00016986,2]
[335299193,1724087462665,-583.27,0.00016986,2]
[335299194,1724087462676,-841.38,0.00016986,2]
[335299195,1724087462685,-415.16605678,0.00016986,2]
[335299196,1724087462695,-521.11,0.00016986,2]
[335299197,1724087462704,-500.0,0.00016986,2]
[335299198,1724087462714,-500.0,0.00016986,2]
[335299199,1724087462724,-500.0,0.00016986,2]
[335299200,1724087462734,-500.0,0.00016986,2]
[335299201,1724087462743,-500.0,0.00016986,2]
[335299202,1724087462753,-500.0,0.00016986,2]
[335299203,1724087462763,-571.1,0.00016986,2]
[335299204,1724087462771,-1271.84,0.00016986,2]
[335299205,1724087462780,-500.0,0.00016986,2]
[335299206,1724087462790,-500.0,0.00016986,2]
[335299207,1724087462799,-191.46513681,0.00017,2]
[335299208,1724087462808,-154.69833824,0.00017,2]
[335299209,1724087462817,-258.72664788,0.00017021,2]
[335299210,1724087462827,-600.0,0.00017046,2]
[335299211,1724087462836,-500.0,0.0001726,2]
[335299212,1724087462845,-500.0,0.0001726,2]
[335299213,1724087462855,-517.84041194,0.0001726,2]
[335299214,1724087462864,-500.0,0.0001726,2]
[335299215,1724087462873,-500.0,0.0001726,2]
[335299216,1724087462882,-500.0,0.0001726,2]
[335299217,1724087462892,-500.0,0.0001726,2]
[335299218,1724087462903,-632.17,0.0001726,2]
[335299219,1724087462912,-612.9,0.0001726,2]
[335299220,1724087462921,-500.0,0.0001726,2]
[335299221,1724087462931,-500.0,0.0001726,2]
[335299222,1724087462940,-775.16,0.0001726,2]
[335299223,1724087462949,-500.0,0.0001726,2]
[335299224,1724087462958,-500.0,0.0001726,2]
[335299225,1724087462967,-633.28,0.0001726,2]
[335299226,1724087462976,-500.0,0.0001726,2]
[335299227,1724087462985,-298.45839759,0.0001726,2]
[335299230,1724087641278,269.93873618,0.00010081,7]
[335299234,1724088204848,-160.235409,8.215e-05,2]
[335299235,1724088204871,-160.235409,8.229e-05,2]
[335299236,1724088204894,-160.235409,8.242e-05,2]
[335299237,1724088204917,-160.235409,8.256e-05,2]
[335299238,1724088204939,-300.0,8.52e-05,2]
[335299239,1724088204963,-300.0,8.52e-05,2]
[335299240,1724088204985,-9659.27545044,8.521e-05,2]
[335299241,1724088205007,-8278.33183396,8.521e-05,2]
[335299242,1724088205029,-850.86713135,8.761e-05,2]
[335299243,1724088205051,-2712.58332809,8.793e-05,2]
[335299244,1724088205081,-811.29992625,8.861e-05,2]
[335299245,1724088205103,-2221.47647721,8.861e-05,3]
[335299246,1724088205126,-1500.0,8.861e-05,2]
[335299247,1724088205150,-232.880806,8.907e-05,2]
[335299248,1724088205173,-232.880806,8.931e-05,2]
[335299249,1724088205196,-232.880806,8.956e-05,2]
[335299250,1724088205219,-232.880806,8.98e-05,2]
[335299251,1724088205241,-232.880806,9.005e-05,2]
[335299252,1724088205265,-232.880806,9.029e-05,2]
[335299253,1724088205287,-232.880806,9.054e-05,2]
[335299254,1724088205310,-232.880806,9.078e-05,2]
[335299255,1724088205332,-232.880806,9.102e-05,2]
[335299256,1724088205355,-232.880806,9.127e-05,2]
[335299257,1724088205377,-232.880806,9.151e-05,2]
[335299258,1724088205400,-232.880806,9.176e-05,2]
[335299259,1724088205424,-232.880806,9.2e-05,2]
[335299260,1724088205447,-232.880806,9.225e-05,2]
[335299261,1724088205470,-232.880806,9.249e-05,2]
[335299262,1724088205492,-232.880806,9.274e-05,2]
[335299263,1724088205516,-232.880806,9.298e-05,2]
[335299264,1724088205539,-232.880806,9.322e-05,2]
[335299265,1724088205570,-232.880806,9.347e-05,2]
[335299266,1724088205600,-232.880806,9.371e-05,2]
[335299267,1724088205624,-420.0,9.372e-05,2]
[335299268,1724088205647,-420.0,9.372e-05,2]
[335299269,1724088205670,-155.92835592,9.429e-05,2]
[335299270,1724088205692,-156.78863559,9.429e-05,2]
[335299271,1724088205713,-180.91774597,9.429e-05,2]
[335299272,1724088205735,-174.83511409,9.524e-05,2]
[335299273,1724088205758,-24900.0,9.526e-05,2]
[335299274,1724088205780,-780.05358786,9.899e-05,2]
[335299275,1724088205802,-190.07446844,9.899e-05,2]
[335299276,1724088205825,-780.05358786,9.899e-05,2]
[335299277,1724088205847,-210.23989812,9.899e-05,2]
[335299278,1724088205869,-422.31766157,9.939e-05,2]
[335299279,1724088206253,160.235409,8.133e-05,2]
[335299280,1724088206332,1500.0,8.861e-05,2]
[335299282,1724088211682,190.07446844,9.524e-05,2]
[335299283,1724088221275,273.37336231,9.9e-05,2]
[335299284,1724088236476,273.37336231,9.9e-05,2]
[335299285,1724088252764,273.37336231,9.9e-05,2]
[335299286,1724088268061,273.37336231,9.9e-05,2]
[335299287,1724088272872,16318.75386369,9.9e-05,2]
[335299288,1724088284358,273.37336231,9.9e-05,2]
[335299289,1724088299591,273.37336231,9.9e-05,2]
[335299290,1724088315174,273.37336231,9.9e-05,2]
[335299292,1724088330968,273.37336231,9.9e-05,2]
[335299293,1724088348527,273.37336231,9.9e-05,2]
[335299294,1724088349857,4530.90252816,9.9e-05,2]
[335299295,1724088363710,273.37336231,9.9e-05,2]
[335299296,1724088380162,273.37336231,9.9e-05,2]
[335299297,1724088395949,273.37336231,9.9e-05,2]
[335299298,1724088411278,273.37336231,9.9e-05,2]
[335299299,1724088426122,273.37336231,9.9e-05,2]
[335299302,1724088442161,-272.16609546,0.00010739,2]
[335299303,1724088442518,273.37336231,9.9e-05,2]
[335299304,1724088450096,-33.50196743,0.00010739,2]
[335299305,1724088450121,-175.62,0.00010959,2]
[335299306,1724088450143,-418.28238958,0.00010959,2]
[335299307,1724088457687,273.37336231,9.9e-05,2]
[335299308,1724088473512,273.37336231,9.9e-05,2]
[335299310,1724088489297,273.37336231,9.9e-05,2]
[335299314,1724088504563,273.37336231,9.9e-05,2]
[335299319,1724088520397,273.37336231,9.9e-05,2]
[335299320,1724088536307,273.37336231,9.9e-05,2]
[335299324,1724088552306,273.37336231,9.9e-05,2]
[335299325,1724088567465,273.37336231,9.9e-05,2]
[335299326,1724088582671,273.37336231,9.9e-05,2]
[335299327,1724088598400,273.37336231,9.9e-05,2]
[335299329,1724088614343,273.37336231,9.9e-05,2]
[335299330,1724088630130,273.37336231,9.9e-05,2]
[335299359,1724088632202,-459.87,0.00010959,2]
[335299361,1724088632211,-300.0,0.00011122,2]
[335299363,1724088632221,-300.0,0.00011122,2]
[335299365,1724088632230,-4900.3299,0.00011123,2]
[335299367,1724088632241,-11852.96565053,0.00011123,2]
[335299369,1724088632305,-69.71159522,0.00011123,2]
[335299370,1724088632317,-473.83415027,0.00011123,2]
[335299371,1724088632375,-30.24067727,0.00011123,2]
[335299395,1724088638338,-7572.91802671,0.00011123,2]
[335299396,1724088638347,-247.12796354,0.00011409,2]
[335299397,1724088638357,-309.11885378,0.00011409,2]
[335299398,1724088638366,-180.75332185,0.00011409,2]
[335299399,1724088638375,-1500.0,0.00011712,2]
[335299400,1724088638384,-210.23989812,0.00011712,2]
[335299401,1724088638393,-2712.58332809,0.00011712,2]
[335299402,1724088638404,-2285.95862771,0.00011712,3]
[335299403,1724088638413,-457.82358429,0.00011731,2]
[335299404,1724088638423,-850.86713135,0.00011731,2]
[335299405,1724088638432,-174.83511409,0.00011731,2]
[335299406,1724088638442,-780.05358786,0.00011731,2]
[335299407,1724088638451,-272.38247463,0.00011842,2]
[335299408,1724088638460,-154.69833824,0.00011842,2]
[335299409,1724088638469,-190.07446844,0.00011894,2]
[335299410,1724088638479,-303.88315392,0.00011894,2]
[335299411,1724088638488,-7013.41255393,0.0001212,2]
[335299412,1724088638497,-10030.08964508,0.00012219,2]
[335299413,1724088638507,-1671.62378754,0.00012219,2]
[335299414,1724088638516,-199.59076215,0.00012219,2]
[335299415,1724088638526,-420.0,0.0001222,2]
[335299416,1724088638536,-420.0,0.00012234,2]
[335299417,1724088638545,-3733.22866537,0.00012356,2]
[335299418,1724088638554,-2166.25640825,0.00012516,2]
[335299419,1724088638564,-1766.30882102,0.00012516,2]
[335299420,1724088638573,-2128.04084944,0.00012551,2]
[335299421,1724088638582,-2142.81108391,0.00012629,2]
[335299422,1724088638592,-3092.64278727,0.00012779,2]
[335299423,1724088638602,-1613.45959463,0.00012782,2]
[335299424,1724088638611,-736.45646053,0.00012898,2]
[335299425,1724088638621,-569.55611374,0.00012898,2]
[335299426,1724088638630,-728.79489661,0.00012898,2]
[335299427,1724088638640,-6292.84280535,0.000129,2]
[335299428,1724088638650,-27622.27257278,0.000129,2]
[335299429,1724088638662,-6487.37172819,0.00012925,2]
[335299430,1724088638671,-157.09608348,0.00012934,2]
[335299431,1724088638681,-196.81150092,0.00012934,2]
[335299432,1724088638694,-665.46668942,0.00012934,2]
[335299433,1724088638704,-157.09608348,0.00012934,2]
[335299434,1724088638714,-533.77403993,0.00012934,2]
[335299435,1724088638899,-493.30764145,0.00012971,2]
[335299436,1724088638910,-520.61647298,0.00012971,2]
[335299437,1724088638919,-601.88445386,0.00012971,2]
[335299438,1724088638929,-188.56371582,0.00012971,2]
[335299439,1724088638940,-450.32306863,0.00012971,2]
[335299440,1724088638950,-320.27103328,0.00012971,2]
[335299441,1724088638960,-688.676981,0.00012971,2]
[335299442,1724088638970,-223.52112672,0.00012989,2]
[335299443,1724088638981,-154.69833824,0.00012989,2]
[335299444,1724088638994,-521.40080129,0.00012991,2]
[335299445,1724088639004,-862.44048895,0.00013,2]
[335299446,1724088639015,-200.0,0.000133,2]
[335299447,1724088639026,-587.0,0.00013457,2]
[335299448,1724088639037,-495.14476956,0.00013496,2]
[335299449,1724088639048,-158.37917738,0.00013596,2]
[335299450,1724088639059,-74320.0293753,0.00013689,2]
[335299451,1724088639068,-632.81045814,0.00013698,2]
[335299452,1724088639078,-226.38154178,0.00013698,2]
[335299453,1724088639088,-500.0,0.00013698,2]
[335299454,1724088639099,-500.0,0.00013698,2]
[335299455,1724088639111,-500.0,0.00013698,2]
[335299456,1724088639121,-500.0,0.00013698,2]
[335299457,1724088639131,-500.0,0.00013698,2]
[335299458,1724088639142,-500.0,0.00013698,2]
[335299459,1724088639154,-629.315593,0.00013698,2]
[335299460,1724088639164,-158.46707924,0.00013698,2]
[335299461,1724088639174,-255.82251608,0.00013698,2]
[335299462,1724088639185,-3000.0,0.00013699,2]
[335299463,1724088639196,-898.235966,0.00013699,2]
[335299464,1724088639205,-194.82337617,0.00013699,2]
[335299465,1724088639214,-6487.37172815,0.00013778,2]
[335299466,1724088639224,-154.69833824,0.0001405,2]
[335299467,1724088639232,-491.365893,0.00014247,2]
[335299468,1724088639242,-6487.37172815,0.00014632,2]
[335299469,1724088639251,-400.0,0.0001467,2]
[335299470,1724088639261,-155.410848,0.000148,2]
[335299471,1724088639270,-823.0,0.00014803,2]
[335299472,1724088639281,-6292.84280532,0.00015185,2]
[335299473,1724088639290,-150.112233,0.000152,2]
[335299474,1724088639300,-6487.37172815,0.00015485,2]
[335299475,1724088639310,-150.112233,0.000155,2]
[335299476,1724088639320,-150.112233,0.000158,2]
[335299477,1724088639329,-153.0,0.00015888,2]
[335299478,1724088639339,-153.0,0.00015888,2]
[335299479,1724088639348,-153.0,0.00015888,2]
[335299480,1724088639358,-153.0,0.00015888,2]
[335299481,1724088639368,-153.0,0.00015888,2]
[335299482,1724088639378,-153.0,0.00015889,2]
[335299483,1724088639388,-153.0,0.00015889,2]
[335299484,1724088639400,-153.0,0.00015889,2]
[335299485,1724088639411,-358.190943,0.0001589,2]
[335299486,1724088639422,-153.0,0.00015892,2]
[335299487,1724088639431,-153.0,0.00015892,2]
[335299488,1724088639442,-153.0,0.00015892,2]
[335299489,1724088639453,-153.0,0.00015892,2]
[335299490,1724088639464,-153.0,0.00015892,2]
[335299491,1724088639474,-153.0,0.00015893,2]
[335299492,1724088639483,-153.0,0.00015893,2]
[335299493,1724088639493,-521.0,0.00015987,2]
[335299494,1724088639504,-150.112233,0.000161,2]
[335299495,1724088639514,-1110.9613583,0.00016146,2]
[335299496,1724088639525,-574.18002641,0.00016167,2]
[335299497,1724088639536,-347.67,0.0001626,7]
[335299498,1724088639548,-1152.0,0.00016283,2]
[335299499,1724088639560,-13758.33218256,0.00016336,2]
[335299500,1724088639569,-6487.37172815,0.00016338,2]
[335299501,1724088639579,-1878.43543875,0.00016338,2]
[335299502,1724088639590,-150.112233,0.000164,2]
[335299503,1724088639602,-198456.38217722,0.00016428,5]
[335299504,1724088639614,-64942.48293159,0.00016428,2]
[335299505,1724088639665,-129.51470568,0.00016428,2]
[335299554,1724088640627,-307.51069637,0.00013497,2]
[335299556,1724088640637,-232208.11986373,0.00016428,2]
[335299558,1724088640646,-416.72140757,0.00016438,2]
[335299560,1724088640659,-500.0,0.00016438,2]
[335299561,1724088640670,-356.77082187,0.00016438,2]
[335299564,1724088640680,-500.0,0.00016438,2]
[335299566,1724088640692,-500.0,0.00016438,2]
[335299567,1724088640703,-500.0,0.00016438,2]
[335299568,1724088640714,-500.0,0.00016438,2]
[335299569,1724088640726,-607.58855017,0.00016438,2]
[335299570,1724088640738,-526.46744832,0.00016438,2]
[335299571,1724088640748,-500.0,0.00016438,2]
[335299572,1724088640758,-500.0,0.00016438,2]
[335299573,1724088640768,-500.0,0.00016438,2]
[335299574,1724088640779,-500.0,0.00016438,2]
[335299575,1724088640789,-500.0,0.00016438,2]
[335299576,1724088640800,-500.0,0.00016438,2]
[335299577,1724088640810,-500.0,0.00016438,2]
[335299578,1724088640821,-500.0,0.00016438,2]
[335299579,1724088640831,-500.0,0.00016438,2]
[335299580,1724088640841,-500.0,0.00016438,2]
[335299581,1724088640851,-500.0,0.00016438,2]
[335299582,1724088640860,-500.0,0.00016438,2]
[335299583,1724088640870,-500.0,0.00016438,2]
[335299584,1724088640880,-500.0,0.00016438,2]
[335299585,1724088640890,-500.0,0.00016438,2]
[335299586,1724088640902,-500.0,0.00016438,2]
[335299587,1724088640911,-500.0,0.00016438,2]
[335299588,1724088640921,-500.0,0.00016438,2]
[335299589,1724088640931,-502.53083468,0.00016438,2]
[335299590,1724088640941,-500.0,0.00016438,2]
[335299591,1724088640951,-500.0,0.00016438,2]
[335299592,1724088640961,-500.0,0.00016438,2]
[335299593,1724088640971,-500.0,0.00016438,2]
[335299594,1724088640980,-500.0,0.00016438,2]
[335299595,1724088640992,-500.0,0.00016438,2]
[335299596,1724088641002,-500.0,0.00016438,2]
[335299597,1724088641012,-500.0,0.00016438,2]
[335299598,1724088641023,-430.44188644,0.00016438,2]
[335299599,1724088641034,-500.0,0.00016438,2]
[335299600,1724088641044,-500.0,0.00016438,2]
[335299601,1724088641057,-841.47,0.00016438,2]
[335299602,1724088641068,-500.0,0.00016438,2]
[335299603,1724088641079,-500.0,0.00016438,2]
[335299604,1724088641089,-500.0,0.00016438,2]
[335299605,1724088641100,-169.27073828,0.00016438,2]
[335299606,1724088641110,-500.0,0.00016438,2]
[335299607,1724088641120,-500.0,0.00016438,2]
[335299608,1724088641131,-500.0,0.00016438,2]
[335299609,1724088641141,-500.0,0.00016438,2]
[335299610,1724088641152,-608.84,0.00016438,2]
[335299611,1724088641162,-500.0,0.00016438,2]
[335299612,1724088641172,-500.0,0.00016438,2]
[335299613,1724088641182,-500.0,0.00016438,2]
[335299614,1724088641193,-500.0,0.00016438,2]
[335299615,1724088641203,-380.44301361,0.00016438,2]
[335299616,1724088641214,-500.0,0.00016438,2]
[335299617,1724088641225,-500.0,0.00016438,2]
[335299618,1724088641235,-500.0,0.00016438,2]
[335299619,1724088641246,-1301.78,0.00016438,2]
[335299620,1724088641255,-500.0,0.00016438,2]
[335299621,1724088641265,-500.0,0.00016438,2]
[335299622,1724088641275,-500.0,0.00016438,2]
[335299623,1724088641285,-500.0,0.00016438,2]
[335299624,1724088641295,-211.03913801,0.00016438,2]
[335299625,1724088641305,-500.0,0.00016438,2]
[335299626,1724088641315,-500.0,0.00016438,2]
[335299627,1724088641325,-500.0,0.00016438,2]
[335299628,1724088641335,-500.0,0.00016438,2]
[335299629,1724088641345,-500.0,0.00016438,2]
[335299630,1724088641355,-500.0,0.00016438,2]
[335299631,1724088641364,-500.0,0.00016438,2]
[335299632,1724088641374,-500.0,0.00016438,2]
[335299633,1724088641384,-500.0,0.00016438,2]
[335299634,1724088641395,-500.0,0.00016438,2]
[335299635,1724088641413,-500.0,0.00016438,2]
[335299636,1724088641423,-500.0,0.00016438,2]
[335299637,1724088641434,-500.0,0.00016438,2]
[335299638,1724088641445,-500.0,0.00016438,2]
[335299639,1724088641455,-500.0,0.00016438,2]
[335299640,1724088641467,-500.0,0.00016438,2]
[335299641,1724088641477,-500.0,0.00016438,2]
[335299642,1724088641520,-500.0,0.00016438,2]
[335299643,1724088641532,-500.0,0.00016438,2]
[335299644,1724088641542,-500.0,0.00016438,2]
[335299645,1724088641552,-500.0,0.00016438,2]
[335299646,1724088641562,-500.0,0.00016438,2]
[335299647,1724088641572,-500.0,0.00016438,2]
[335299648,1724088641581,-500.0,0.00016438,2]
[335299649,1724088641591,-500.0,0.00016438,2]
[335299650,1724088641600,-500.0,0.00016438,2]
[335299651,1724088641610,-500.0,0.00016438,2]
[335299652,1724088641619,-500.0,0.00016438,2]
[335299653,1724088641629,-500.0,0.00016438,2]
[335299654,1724088641639,-500.0,0.00016438,2]
[335299655,1724088641649,-500.0,0.00016438,2]
[335299656,1724088641659,-500.0,0.00016438,2]
[335299657,1724088641668,-500.0,0.00016438,2]
[335299658,1724088641679,-1300.46,0.00016438,2]
[335299659,1724088641688,-500.0,0.00016438,2]
[335299660,1724088641701,-500.0,0.00016438,2]
[335299661,1724088641711,-634.00364822,0.00016438,2]
[335299662,1724088641722,-259.45228411,0.00016438,2]
[335299663,1724088641735,-500.0,0.00016438,2]
[335299664,1724088641746,-500.0,0.00016438,2]
[335299665,1724088641755,-500.0,0.00016438,2]
[335299666,1724088641766,-500.0,0.00016438,2]
[335299667,1724088641776,-500.0,0.00016438,2]
[335299668,1724088641787,-500.0,0.00016438,2]
[335299669,1724088641797,-345.1294237,0.00016438,2]
[335299670,1724088641807,-500.0,0.00016438,2]
[335299671,1724088641817,-500.0,0.00016438,2]
[335299672,1724088641826,-500.0,0.00016438,2]
[335299673,1724088641837,-500.0,0.00016438,2]
[335299674,1724088641846,-500.0,0.00016438,2]
[335299675,1724088641856,-500.0,0.00016438,2]
[335299676,1724088641866,-506.32870611,0.00016438,2]
[335299677,1724088641875,-500.0,0.00016438,2]
[335299678,1724088641885,-500.0,0.00016438,2]
[335299679,1724088641895,-500.0,0.00016438,2]
[335299680,1724088641908,-500.0,0.00016438,2]
[335299681,1724088641918,-505.60518337,0.00016438,2]
[335299682,1724088641929,-500.0,0.00016438,2]
[335299683,1724088641939,-500.0,0.00016438,2]
[335299684,1724088641951,-500.0,0.00016438,2]
[335299685,1724088641962,-500.0,0.00016438,2]
[335299686,1724088641974,-642.10457207,0.00016438,2]
[335299687,1724088641984,-500.0,0.00016438,2]
[335299688,1724088641994,-500.0,0.00016438,2]
[335299689,1724088642004,-500.0,0.00016438,2]
[335299690,1724088642013,-500.0,0.00016438,2]
[335299691,1724088642023,-500.0,0.00016438,2]
[335299692,1724088642035,-500.0,0.00016438,2]
[335299693,1724088642045,-500.0,0.00016438,2]
[335299694,1724088642056,-500.0,0.00016438,2]
[335299695,1724088642065,-500.0,0.00016438,2]
[335299696,1724088642075,-500.0,0.00016438,2]